{"text_format":"3","workbook":"xlsx","n_sheets":3,"sheets":["Λίστα μαθητών","Κατάλογος τάξης","Στοιχεία μαθητών"],"not_rendered":{"images":2,"defined_names":8},"read":"whole","date_system":"1900"}

{"sheet":"Λίστα μαθητών","index":0,"n_rows":8,"n_cols":13,"rows_kept":8,"merged":[[1,2,2,3],[1,4,1,11],[2,4,2,11],[6,12,8,16]]}
[]
[null,null,"Λίστα μαθητών",null,"ΜΕΤΑΒΑΣΗ ΣΤΟΝ ΚΑΤΑΛΟΓΟ ΤΑΞΗΣ"]
[{"$nulls":4},"ΜΕΤΑΒΑΣΗ ΣΤΑ ΣΤΟΙΧΕΙΑ ΜΑΘΗΤΩΝ"]
[null,null,"ΟΝΟΜΑ ΜΑΘΗΤΗ","EMAIL","ΤΗΛΕΦΩΝΟ ΟΙΚΙΑΣ","ΚΙΝΗΤΟ ΤΗΛΕΦΩΝΟ","ΗΜΕΡΟΜΗΝΙΑ ΓΕΝΝΗΣΗΣ","ΕΠΑΦΗ ΕΚΤΑΚΤΗΣ ΑΝΑΓΚΗΣ","ΤΗΛΕΦΩΝΟ ΕΚΤΑΚΤΗΣ ΑΝΑΓΚΗΣ","ΓΙΑΤΡΟΣ","ΤΗΛΕΦΏΝΟ ΓΙΑΤΡΟΥ","  "]
[null,null,"Όνομα 1","Διεύθυνση email","Τηλέφωνο οικίας","Κινητό","Ημερομηνία","Επαφή 1","Τηλέφωνο έκτακτης ανάγκης","Γιατρός 1","Τηλέφωνο γιατρού"]
[null,null,"Όνομα 2","Διεύθυνση email","Τηλέφωνο οικίας","Κινητό","Ημερομηνία","Επαφή 2:","Τηλέφωνο έκτακτης ανάγκης","Γιατρός 2","Τηλέφωνο γιατρού"]
[null,null,"Όνομα 3","Διεύθυνση email","Τηλέφωνο οικίας","Κινητό","Ημερομηνία","Επαφή 3:","Τηλέφωνο έκτακτης ανάγκης","Γιατρός 3","Τηλέφωνο γιατρού",null,"Συμβουλή: Για να προσθέσετε περισσότερους μαθητές, στο τελευταίο κελί του πίνακα, πατήστε το πλήκτρο Tab."]
[null,null,"Όνομα 4","Διεύθυνση email","Τηλέφωνο οικίας","Κινητό","Ημερομηνία","Επαφή 4:","Τηλέφωνο έκτακτης ανάγκης","Γιατρός 4","Τηλέφωνο γιατρού"]

{"sheet":"Κατάλογος τάξης","index":1,"n_rows":12,"n_cols":7,"rows_kept":12,"merged":[[1,2,2,2],[1,3,2,3],[1,4,1,6],[2,4,2,6]]}
[]
[null,null,"Κατάλογος τάξης","Ινστιτούτο Γραφικών Τεχνών","ΜΕΤΑΒΑΣΗ ΣΤΗ ΛΙΣΤΑ ΜΑΘΗΤΩΝ"]
[{"$nulls":4},"ΜΕΤΑΒΑΣΗ ΣΤΑ ΣΤΟΙΧΕΙΑ ΜΑΘΗΤΩΝ"]
[null,null,"ΜΑΘΗΜΑ","Όνομα μαθήματος","ΗΜΕΡΟΜΗΝΙΑ ΕΝΑΡΞΗΣ","Ημερομηνία"]
[null,null,"ΚΑΘΗΓΗΤΗΣ","Καθηγητής 1","ΗΜΕΡΟΜΗΝΙΑ ΛΗΞΗΣ","Ημερομηνία"]
[null,null,"ΕΓΓΕΓΡΑΜΜΕΝΟΙ ΜΑΘΗΤΕΣ",{"$f":"COUNTA(ΚατάλογοςΜαθητών[ΟΝΟΜΑ ΜΑΘΗΤΗ])","v":4}]
[]
[null,null,"ΟΝΟΜΑ ΜΑΘΗΤΗ","EMAIL","ΤΗΛΕΦΩΝΟ ΟΙΚΙΑΣ","ΚΙΝΗΤΟ ΤΗΛΕΦΩΝΟ","  "]
[null,null,"Όνομα 1",{"$f":"IFERROR(VLOOKUP(ΚατάλογοςΜαθητών[[#This Row],[ΟΝΟΜΑ ΜΑΘΗΤΗ]],Μαθητές[],2),\"\")","v":"Διεύθυνση email"},{"$f":"IFERROR(VLOOKUP(ΚατάλογοςΜαθητών[[#This Row],[ΟΝΟΜΑ ΜΑΘΗΤΗ]],Μαθητές[],3),\"\")","v":"Τηλέφωνο οικίας"},{"$f":"IFERROR(VLOOKUP(ΚατάλογοςΜαθητών[[#This Row],[ΟΝΟΜΑ ΜΑΘΗΤΗ]],Μαθητές[],4),\"\")","v":"Κινητό"}]
[null,null,"Όνομα 2",{"$f":"IFERROR(VLOOKUP(ΚατάλογοςΜαθητών[[#This Row],[ΟΝΟΜΑ ΜΑΘΗΤΗ]],Μαθητές[],2),\"\")","v":"Διεύθυνση email"},{"$f":"IFERROR(VLOOKUP(ΚατάλογοςΜαθητών[[#This Row],[ΟΝΟΜΑ ΜΑΘΗΤΗ]],Μαθητές[],3),\"\")","v":"Τηλέφωνο οικίας"},{"$f":"IFERROR(VLOOKUP(ΚατάλογοςΜαθητών[[#This Row],[ΟΝΟΜΑ ΜΑΘΗΤΗ]],Μαθητές[],4),\"\")","v":"Κινητό"}]
[null,null,"Όνομα 3",{"$f":"IFERROR(VLOOKUP(ΚατάλογοςΜαθητών[[#This Row],[ΟΝΟΜΑ ΜΑΘΗΤΗ]],Μαθητές[],2),\"\")","v":"Διεύθυνση email"},{"$f":"IFERROR(VLOOKUP(ΚατάλογοςΜαθητών[[#This Row],[ΟΝΟΜΑ ΜΑΘΗΤΗ]],Μαθητές[],3),\"\")","v":"Τηλέφωνο οικίας"},{"$f":"IFERROR(VLOOKUP(ΚατάλογοςΜαθητών[[#This Row],[ΟΝΟΜΑ ΜΑΘΗΤΗ]],Μαθητές[],4),\"\")","v":"Κινητό"}]
[null,null,"Όνομα 4",{"$f":"IFERROR(VLOOKUP(ΚατάλογοςΜαθητών[[#This Row],[ΟΝΟΜΑ ΜΑΘΗΤΗ]],Μαθητές[],2),\"\")","v":"Διεύθυνση email"},{"$f":"IFERROR(VLOOKUP(ΚατάλογοςΜαθητών[[#This Row],[ΟΝΟΜΑ ΜΑΘΗΤΗ]],Μαθητές[],3),\"\")","v":"Τηλέφωνο οικίας"},{"$f":"IFERROR(VLOOKUP(ΚατάλογοςΜαθητών[[#This Row],[ΟΝΟΜΑ ΜΑΘΗΤΗ]],Μαθητές[],4),\"\")","v":"Κινητό"}]

{"sheet":"Στοιχεία μαθητών","index":2,"n_rows":13,"n_cols":4,"rows_kept":13,"merged":[[1,2,2,2],[1,3,1,4],[2,3,2,4],[3,2,3,3]]}
[]
[null,null,"Στοιχεία μαθητή","ΜΕΤΑΒΑΣΗ ΣΤΗ ΛΙΣΤΑ ΜΑΘΗΤΩΝ"]
[{"$nulls":3},"ΜΕΤΑΒΑΣΗ ΣΤΟΝ ΚΑΤΑΛΟΓΟ ΤΑΞΗΣ"]
[null,null,"ΣΥΜΒΟΥΛΗ: ΕΠΙΛΕΞΤΕ ΕΝΑΝ ΜΑΘΗΤΗ ΑΠΟ ΤΗΝ ΑΝΑΠΤΥΣΣΟΜΕΝΗ ΛΙΣΤΑ ΣΤΟ ΚΕΛΙ D5 ΓΙΑ ΝΑ ΕΝΗΜΕΡΩΣΕΤΕ ΤΑ ΣΤΟΙΧΕΙΑ ΤΟΥ ΜΑΘΗΤΗ"]
[null,null,"ΟΝΟΜΑ ΜΑΘΗΤΗ","Όνομα 1"]
[null,null,"EMAIL",{"$f":"IFERROR(VLOOKUP(ΌνομαΜαθητή,Μαθητές[],2,FALSE),\"\")","v":"Διεύθυνση email"}]
[null,null,"ΤΗΛΕΦΩΝΟ ΟΙΚΙΑΣ",{"$f":"IFERROR(VLOOKUP(ΌνομαΜαθητή,Μαθητές[],3,FALSE),\"\")","v":"Τηλέφωνο οικίας"}]
[null,null,"ΚΙΝΗΤΟ ΤΗΛΕΦΩΝΟ",{"$f":"IFERROR(VLOOKUP(ΌνομαΜαθητή,Μαθητές[],4,FALSE),\"\")","v":"Κινητό"}]
[null,null,"ΗΜΕΡΟΜΗΝΙΑ ΓΕΝΝΗΣΗΣ",{"$f":"IFERROR(VLOOKUP(ΌνομαΜαθητή,Μαθητές[],5,FALSE),\"\")","v":"Ημερομηνία"}]
[null,null,"ΕΠΑΦΗ ΕΚΤΑΚΤΗΣ ΑΝΑΓΚΗΣ",{"$f":"IFERROR(VLOOKUP(ΌνομαΜαθητή,Μαθητές[],6,FALSE),\"\")","v":"Επαφή 1"}]
[null,null,"ΤΗΛΕΦΩΝΟ ΕΚΤΑΚΤΗΣ ΑΝΑΓΚΗΣ",{"$f":"IFERROR(VLOOKUP(ΌνομαΜαθητή,Μαθητές[],7,FALSE),\"\")","v":"Τηλέφωνο έκτακτης ανάγκης"}]
[null,null,"ΓΙΑΤΡΟΣ",{"$f":"IFERROR(VLOOKUP(ΌνομαΜαθητή,Μαθητές[],8,FALSE),\"\")","v":"Γιατρός 1"}]
[null,null,"ΤΗΛΕΦΏΝΟ ΓΙΑΤΡΟΥ",{"$f":"IFERROR(VLOOKUP(ΌνομαΜαθητή,Μαθητές[],9,FALSE),\"\")","v":"Τηλέφωνο γιατρού"}]